Cogmind - Beta 13 X1 @@@ ROGUE MODE // 2023.12.19 @ 11:29:16 Player: VR-DUX Result: Self-destructed Performance ------------- Evolutions (4) 2000 Regions Visited (11) 2200 Robots Destroyed (121) 605 Value Destroyed (3275) 3275 Prototype IDs (240) 4800 Alien Tech Used (0) 0 Bonus (4263) 4263 TOTAL SCORE: 17143 Bonus ------- High Alert Combat Kills 655 Follower Combat Kills 33 Aligned with FarCom 300 Met Data Miner 300 Used Data Conduit 3000 Friendly Fire -25 Cogmind --------- Core Integrity 850/850 Matter 248/300 Energy 130/150 System Corruption 0% Temperature Cool (10) Movement Flying (24) Location -6/Factory Parts ------- > --- POWER (1) -------- Micro Nuclear Core > --- PROPULSION (5) --- Cesium-ion Thruster Improved VTOL Module Improved VTOL Module Improved VTOL Module Xenon Bombardment Thruster > --- UTILITY (7) ------ Lightpack 2.0 Hacking Suite Hacking Suite System Shield Quantum Router > --- WEAPON (2) ------- Missile Launcher Chainsword > --- INVENTORY (40) --- Light Deuterium Engine Micro Nuclear Core VTOL Module Xenon Bombardment Thruster Improved Heat Sink Medium Storage Unit Large Storage Unit Structural Scanner Improved Signal Interpreter Improved Propulsion Shielding Improved Propulsion Shielding Improved Light Armor Plating EM Pulse Cannon EM Pulse Cannon Improved EM Pulse Cannon Autogun Autogun Gauss Cannon Gauss Cannon Missile Launcher Power Maul Peak State ------------ > --- POWER ------------ Micro Nuclear Core > --- PROPULSION ------- Cesium-ion Thruster Improved VTOL Module Improved VTOL Module Improved VTOL Module Xenon Bombardment Thruster > --- UTILITY ---------- Lightpack 2.0 Hacking Suite Hacking Suite System Shield Quantum Router > --- WEAPON ----------- Missile Launcher Chainsword > --- INVENTORY -------- Light Deuterium Engine Micro Nuclear Core VTOL Module Xenon Bombardment Thruster Improved Heat Sink Medium Storage Unit Large Storage Unit Structural Scanner Improved Signal Interpreter Improved Propulsion Shielding Improved Propulsion Shielding Improved Light Armor Plating EM Pulse Cannon EM Pulse Cannon Improved EM Pulse Cannon Autogun Autogun Gauss Cannon Gauss Cannon Missile Launcher Power Maul [Rating: 85] Favorites ----------- Power Ion Engine Engine Ion Engine Power Core Micro Nuclear Core Propulsion Light Treads Treads Light Treads Leg Aluminum Leg Wheel Compact Wheel Flight Unit Improved VTOL Module Utility Hacking Suite Device Structural Scanner Storage Huge Storage Unit Hackware Hacking Suite Protection Light Armor Plating Weapon Light Cannon Energy Gun Medium Laser Energy Cannon EM Pulse Cannon Ballistic Gun Assault Rifle Ballistic Cannon Light Cannon Launcher Missile Launcher Slashing Weapon Chainsword Build | -11 -10 -10 -10 -9 -8 -7 -7 -7 -7 -6 -6 ------- Run | Jun Mat Min Exi Min Mat Fac Low Low Dat Pro Fac Slots Evolved 8 | . . . . . 4 2 . . . . 2 Power . | . . . . . . . . . . . . Propulsion 3 | . . . . . 2 1 . . . . . Utility 5 | . . . . . 2 1 . . . . 2 Weapon . | . . . . . . . . . . . . Parts Attached 114 | 1 13 1 2 . 64 29 1 . . . 3 Power 13 | . 2 . . . 6 5 . . . . . Engine 11 | . 2 . . . 6 3 . . . . . Core 2 | . . . . . . 2 . . . . . Reactor . | . . . . . . . . . . . . Propulsion 41 | . 8 . 1 . 21 11 . . . . . Treads 27 | . 4 . . . 19 4 . . . . . Leg 4 | . 4 . . . . . . . . . . Wheel 3 | . . . 1 . 1 1 . . . . . Hover . | . . . . . . . . . . . . Flight 7 | . . . . . 1 6 . . . . . Utility 22 | 1 2 . 1 . 10 5 . . . . 3 Device 7 | 1 1 . . . 4 1 . . . . . Storage 4 | . 1 . 1 . 1 1 . . . . . Processor . | . . . . . . . . . . . . Hackware 6 | . . . . . 1 2 . . . . 3 Protection 5 | . . . . . 4 1 . . . . . Artifact . | . . . . . . . . . . . . Weapon 38 | . 1 1 . . 27 8 1 . . . . Energy Gun 8 | . 1 . . . 7 . . . . . . Energy Cannon 8 | . . . . . 7 1 . . . . . Ballistic Gun 7 | . . . . . 3 4 . . . . . Ballistic Cannon 4 | . . 1 . . 2 1 . . . . . Launcher 6 | . . . . . 5 . 1 . . . . Special Weapon . | . . . . . . . . . . . . Impact Weapon . | . . . . . . . . . . . . Slashing Weapon 5 | . . . . . 3 2 . . . . . Piercing Weapon . | . . . . . . . . . . . . Special Melee Weapon . | . . . . . . . . . . . . Unidentified Prototypes 5 | . . . . . 4 . . . . . 1 Corrupted Parts 1 | . . . . . 1 . . . . . . System Corruption 2 | . . . . . 2 . . . . . . Parts Lost 30 | . . 1 . . 23 6 . . . . . Power 4 | . . . . . 3 1 . . . . . Propulsion 10 | . . . . . 9 1 . . . . . Utility 8 | . . . . . 5 3 . . . . . Weapon 8 | . . 1 . . 6 1 . . . . . Highest Loss Streak 8 | . . 1 . . 8 3 . . . . . To Critical Strikes . | . . . . . . . . . . . . Average Slot Usage (%) 94 | . 100 100 100 100 94 86 84 84 84 84 80 Engine 8 | . 14 14 14 14 7 4 . . . . . Treads 21 | . 4 28 21 14 27 21 . . . . . Leg 3 | . 23 . . . . . . . . . . Wheel 4 | . . . 6 14 7 . . . . . . Flight 4 | . . . . . . 16 38 38 38 38 33 Device 9 | . 14 14 14 14 8 3 7 7 7 7 6 Storage 10 | . 14 14 14 14 9 7 7 7 7 7 6 Hackware 6 | . . . . . 9 11 7 7 7 7 13 Protection 3 | . . . . . 6 3 . . . . . Energy Gun 6 | . 14 14 14 14 4 . . . . . . Energy Cannon 2 | . . . . . 3 . . . . . . Ballistic Gun 5 | . 14 . . . 4 7 5 . . . . Ballistic Cannon 3 | . . 13 14 14 3 . . . . . . Slashing Weapon 1 | . . . . . . 3 7 7 7 7 6 Naked Turns . | . . . . . . . . . . . . Heaviest Build 101 | 12 30 31 91 91 101 94 21 21 21 21 21 Greatest Support 124 | 20 40 40 40 16 104 124 26 26 26 26 26 Greatest Overweight (x) 6 | . 1 . 5 5 6 . . . . . . Average Overweight (x) 1 | . . . 2 5 4 . . . . . . Largest Inventory Capacity 40 | 8 15 15 25 25 25 40 40 40 40 40 40 Average Capacity 24 | 8 11 15 19 25 25 31 40 40 40 40 40 Most Carried 27 | 6 15 15 18 22 25 27 23 23 24 24 24 Average Carried 20 | 5 10 14 16 20 23 22 22 23 23 24 22 Final Capacity 40 | 8 15 15 25 25 25 40 40 40 40 40 40 Final Carried 25 | 5 14 15 18 22 25 22 23 23 24 24 21 Class Distribution -------------------- 44% | Mutant 44% | Scavenger-Mutant 11% | Hauler-Sprinter Dominant Class ---------------- Mutant | -10/Materials Mutant | -10/Mines Mutant | -10/Exiles Mutant | -9/Mines Scavenger-Mutant | -8/Materials Scavenger-Mutant | -7/Factory Hauler-Sprinter | -7/Lower Caves Hauler-Sprinter | -7/Lower Caves Hauler-Sprinter | -7/Data Miner Hauler-Sprinter | -6/Proximity Caves Hauler-Sprinter | -6/Factory Resources | -11 -10 -10 -10 -9 -8 -7 -7 -7 -7 -6 -6 ----------- Run | Jun Mat Min Exi Min Mat Fac Low Low Dat Pro Fac Matter Collected 2980 | 222 463 37 20 28 1654 529 . . 27 . . Remotely 927 | 10 115 . . . 802 . . . . . . Salvage Created 4373 | 89 552 67 . 87 2965 586 . . 27 . . Parts 271 | 4 43 4 . 3 172 43 . . 2 . . Haulers Intercepted 8 | . 1 . . . 6 1 . . . . . Recyclers Shooed 2 | . . . . . 2 . . . . . . Parts Field Recycled . | . . . . . . . . . . . . Retrieved Matter . | . . . . . . . . . . . . Parts Self-Destructed . | . . . . . . . . . . . . Prevented . | . . . . . . . . . . . . Kills | -11 -10 -10 -10 -9 -8 -7 -7 -7 -7 -6 -6 ------- Run | Jun Mat Min Exi Min Mat Fac Low Low Dat Pro Fac Combat Hostiles Destroyed 68 | . 13 1 . . 48 6 . . . . . Guns 31 | . 12 . . . 15 4 . . . . . Cannons 16 | . . 1 . . 15 . . . . . . AOE 15 | . . . . . 15 . . . . . . Classes Destroyed 17 | 2 6 . . . 9 . . . . . . Worker 9 | . . . . . 9 . . . . . . Builder 12 | . 1 1 . . 8 2 . . . . . Tunneler 2 | 1 . . . . . 1 . . . . . Hauler 8 | . 1 . . . 6 1 . . . . . Recycler 10 | 1 1 . . 1 6 1 . . . . . Mechanic 1 | . . . . . 1 . . . . . . Operator 6 | . 1 . . . 3 2 . . . . . Watcher 7 | . 1 . . . 5 1 . . . . . Swarmer 6 | . 5 . . . 1 . . . . . . Cutter 2 | . . . . . 2 . . . . . . Grunt 38 | . 8 1 . . 26 3 . . . . . Brawler 3 | . . . . . 3 . . . . . . Duelist 2 | . . . . . 2 . . . . . . Protector 1 | . . . . . 1 . . . . . . Sentry 11 | . . . . . 8 3 . . . . . Specialist 4 | . . . . . 4 . . . . . . Heavy 1 | . . . . . 1 . . . . . . Best Kill Streak 6 | 2 5 1 . 1 6 2 . . 1 . . Combat Bots Only 6 | . 3 1 . . 6 2 . . . . . Max Kills in Single Turn 2 | 1 2 1 . 1 2 1 . . 1 . . Gunslinging 1 | . 1 . . . . . . . . . . Exploded 2 | . . . . . 2 . . . . . . Melee . | . . . . . . . . . . . . Uniques/NPCs Destroyed 1 | . . . . . . . . . 1 . . Data Miner (-7/Data Miner) Combat | -11 -10 -10 -10 -9 -8 -7 -7 -7 -7 -6 -6 -------- Run | Jun Mat Min Exi Min Mat Fac Low Low Dat Pro Fac Damage Taken 5053 | . 505 130 . . 3364 890 . 42 47 75 . Core 547 | . 139 . . . 311 65 . 32 . . . Absorbed by Shields . | . . . . . . . . . . . . Core Remaining (%) 68 | 100 . . . 44 43 . . . . 86 . Volleys Fired 332 | 4 49 7 . 2 223 44 3 . . . . Largest 2 | 2 2 2 . 2 2 2 1 . . . . Hottest 101 | 60 70 85 . 85 86 101 36 . . . . Shots Fired 559 | 8 96 12 . 4 362 74 3 . . . . Gun 374 | 8 96 9 . 2 201 58 . . . . . Cannon 154 | . . 3 . 2 133 16 . . . . . Launcher 31 | . . . . . 28 . 3 . . . . Special . | . . . . . . . . . . . . Kinetic 313 | 4 49 5 . 2 196 57 . . . . . Thermal 107 | 4 47 7 . 2 47 . . . . . . Explosive 31 | . . . . . 28 . 3 . . . . Electromagnetic 108 | . . . . . 91 17 . . . . . Robot Hit Streak 20 | 5 12 9 . 8 20 9 . . . . . Robot Miss Streak 10 | 1 5 1 . 1 10 3 . . . . . Penetration Max 1 | . . . . . . 1 . . . . . Secondary Targets 2 | . 2 . . . . . . . . . . Max Gunslinging Chain 1 | . 1 . . . . . . . . . . Shots Hit Robots 380 | 5 63 10 . 3 246 52 . . 1 . . Core Hits 211 | 3 23 6 . 1 158 19 . . 1 . . Critical Kills 2 | . . . . . 2 . . . . . . Critical Parts Destroyed 2 | . . . . . . 2 . . . . . Critical Strikes 14 | . 4 3 . . 4 3 . . . . . Burn 7 | . 4 2 . . 1 . . . . . . Destroy 5 | . . . . . 2 3 . . . . . Blast 1 | . . 1 . . . . . . . . . Corrupt 1 | . . . . . 1 . . . . . . Melee Attacks 41 | . . . . . 7 25 . . 7 2 . Impact . | . . . . . . . . . . . . Slashing 41 | . . . . . 7 25 . . 7 2 . Piercing . | . . . . . . . . . . . . Sneak Attacks 5 | . . . . . . 4 . . 1 . . Combat Hostiles . | . . . . . . . . . . . . Follow-up Attacks . | . . . . . . . . . . . . Damage Inflicted 9386 | 64 1023 139 . 44 6601 1422 . . 93 . . Guns 3831 | 64 848 102 . 25 2112 680 . . . . . Cannons 2437 | . . 37 . 19 2172 209 . . . . . Explosions 2491 | . 175 . . . 2316 . . . . . . Melee 626 | . . . . . . 533 . . 93 . . Ramming 1 | . . . . . 1 . . . . . . Kinetic 3567 | 30 520 48 . 19 2270 680 . . . . . Thermal 1249 | 34 328 91 . 25 771 . . . . . . Explosive 2061 | . 175 . . . 1886 . . . . . . Electromagnetic 1882 | . . . . . 1673 209 . . . . . Impact . | . . . . . . . . . . . . Slashing 626 | . . . . . . 533 . . 93 . . Piercing . | . . . . . . . . . . . . Highest Corruption 10 | . . . . . 10 . . . . . . Average Corruption 7 | . . . . . 7 . . . . . . Corruption Purged . | . . . . . . . . . . . . Corruption Blocked . | . . . . . . . . . . . . Effects 43 | . . . . . 43 . . . . . . Message Errors 5 | . . . . . 5 . . . . . . Matter Fused 10 | . . . . . 10 . . . . . . Heat Flow Errors 5 | . . . . . 5 . . . . . . Energy Discharges 6 | . . . . . 6 . . . . . . Parts Rejected 1 | . . . . . 1 . . . . . . Data Loss (minor) 6 | . . . . . 6 . . . . . . Data Loss (major) 4 | . . . . . 4 . . . . . . Misfires 3 | . . . . . 3 . . . . . . Alerts 3 | . . . . . 3 . . . . . . Overload Shots . | . . . . . . . . . . . . Overflow Damage 190 | . 87 . . . 19 84 . . . . . Projectiles 8 | . . . . . 8 . . . . . . Explosions 98 | . 87 . . . 11 . . . . . . Melee 84 | . . . . . . 84 . . . . . Knockbacks 9 | . . . . . 9 . . . . . . Impact . | . . . . . . . . . . . . Kinetic 8 | . . . . . 8 . . . . . . Secondary 1 | . . . . . 1 . . . . . . Self-Inflicted Damage 229 | . 151 . . . 78 . . . . . . Shots 4 | . 2 . . . 2 . . . . . . Rammed 1 | . . . . . 1 . . . . . . Targets Rammed 1 | . . . . . 1 . . . . . . Kicked . | . . . . . . . . . . . . Crushed . | . . . . . . . . . . . . Highest Temperature 276 | 20 117 159 . 48 276 40 4 15 4 19 . Average Temperature 31 | 15 26 77 . 25 49 4 2 7 2 6 . Received Heat Transfer 1437 | . 120 93 . . 954 240 . 12 . 18 . Siege Activations . | . . . . . . . . . . . . Robots Corrupted 5 | . . . . . 3 2 . . . . . Combat Hostiles 5 | . . . . . 3 2 . . . . . Parts Fried 12 | . . . . . 10 2 . . . . . Impact Corruptions . | . . . . . . . . . . . . Robots Melted 1 | . 1 . . . . . . . . . . Combat Hostiles 1 | . 1 . . . . . . . . . . Parts Melted 2 | . 1 . . . 1 . . . . . . Heat Transferred 3317 | 75 1186 407 . 74 1575 . . . . . . Parts Sabotaged . | . . . . . . . . . . . . Parts Stolen . | . . . . . . . . . . . . Parts Stripped . | . . . . . . . . . . . . Power Chain Reactions 7 | . . . . . 7 . . . . . . Missiles Intercepted . | . . . . . . . . . . . . Alert | -11 -10 -10 -10 -9 -8 -7 -7 -7 -7 -6 -6 ------- Run | Jun Mat Min Exi Min Mat Fac Low Low Dat Pro Fac Peak Influence 1139 | 10 391 93 . 5 1139 651 . . . . 225 Initial 504 | . 6 68 . . 1 504 . . . . 225 Average 514 | 7 202 88 . 2 704 519 . . . . 225 Maximum Alert Level 4 | . 1 . . . 4 2 . . . . 1 Low Security (%) 25 | 100 48 100 . 100 11 . . . . . . Level 1 10 | . 51 . . . 5 . . . . . 100 Level 2 33 | . . . . . 27 100 . . . . . Level 3 21 | . . . . . 39 . . . . . . Level 4 8 | . . . . . 16 . . . . . . Level 5 . | . . . . . . . . . . . . High Security . | . . . . . . . . . . . . Max Security . | . . . . . . . . . . . . Squads Dispatched 19 | . 3 . . . 11 5 . . . . . Investigation 4 | . 1 . . . 1 2 . . . . . Extermination 2 | . . . . . . 2 . . . . . Reinforcement 10 | . 2 . . . 7 1 . . . . . Assault 3 | . . . . . 3 . . . . . . Garrison . | . . . . . . . . . . . . Intercept . | . . . . . . . . . . . . Searches Triggered . | . . . . . . . . . . . . Construction Impeded . | . . . . . . . . . . . . Haulers Reinforced . | . . . . . . . . . . . . Active Scanning Responses . | . . . . . . . . . . . . Cargo Convoy Interrupts . | . . . . . . . . . . . . Stealth | -11 -10 -10 -10 -9 -8 -7 -7 -7 -7 -6 -6 --------- Run | Jun Mat Min Exi Min Mat Fac Low Low Dat Pro Fac Distress Signals 5 | . . . . . 4 1 . . . . . Communications Jammed . | . . . . . . . . . . . . Distress Signals . | . . . . . . . . . . . . Times Spotted 162 | . 22 3 . . 92 23 . 5 4 13 . Peak Tracking Total 13 | . 4 3 . . 5 5 . 6 4 13 . Tactical Retreats 21 | . 1 . . . 14 3 . 1 . 2 . Traps | -11 -10 -10 -10 -9 -8 -7 -7 -7 -7 -6 -6 ------- Run | Jun Mat Min Exi Min Mat Fac Low Low Dat Pro Fac Traps Triggered 3 | . . . . . 2 1 . . . . . Indirectly . | . . . . . . . . . . . . Trap Hack Attempts . | . . . . . . . . . . . . Triggered . | . . . . . . . . . . . . Disarmed . | . . . . . . . . . . . . Reprogrammed . | . . . . . . . . . . . . Reused . | . . . . . . . . . . . . Traps Extracted . | . . . . . . . . . . . . Installed . | . . . . . . . . . . . . Triggered 2 | . . . . . . . 2 . . . . Machines | -11 -10 -10 -10 -9 -8 -7 -7 -7 -7 -6 -6 ---------- Run | Jun Mat Min Exi Min Mat Fac Low Low Dat Pro Fac Machines Disabled 13 | . 3 . . . 9 1 . . . . . Max in Single Turn 3 | . 3 . . . 3 1 . . . . . Garrison Access 3 | . . . . . 1 2 . . . . . Machines Repaired . | . . . . . . . . . . . . Machines Sabotaged . | . . . . . . . . . . . . Overloaded Fab Kills . | . . . . . . . . . . . . Hacking | -11 -10 -10 -10 -9 -8 -7 -7 -7 -7 -6 -6 --------- Run | Jun Mat Min Exi Min Mat Fac Low Low Dat Pro Fac Machines Accessed 32 | . 6 . 2 . 6 15 . . 3 . . Terminals 22 | . 5 . . . 5 12 . . . . . Fabricators . | . . . . . . . . . . . . Repair Stations . | . . . . . . . . . . . . Recycling Units 2 | . 1 . . . . 1 . . . . . Scanalyzers . | . . . . . . . . . . . . Garrison Access 3 | . . . . . 1 2 . . . . . Total Hacks 81 | . 17 . 2 . 15 29 . . 18 . . Successful 42 | . 11 . 2 . 5 6 . . 18 . . Failed 39 | . 6 . . . 10 23 . . . . . Catastrophic 11 | . . . . . 3 8 . . . . . Database Lockouts . | . . . . . . . . . . . . Manual 48 | . 14 . 1 . 9 24 . . . . . Terminals 54 | . 14 . . . 14 26 . . . . . Fabricators . | . . . . . . . . . . . . Repair Stations . | . . . . . . . . . . . . Recycling Units 4 | . 3 . . . . 1 . . . . . Scanalyzers . | . . . . . . . . . . . . Garrison Access 3 | . . . . . 1 2 . . . . . Terminal Hacks 35 | . 8 . 2 . 4 3 . . 18 . . Record 12 | . . . 1 . . . . . 11 . . Part Schematic 6 | . 2 . . . . . . . 4 . . Robot Analysis 2 | . 2 . . . . . . . . . . Prototype ID Bank 3 | . . . . . . . . . 3 . . Branch Access Points 3 | . 1 . . . 1 1 . . . . . Terminal Index 1 | . . . . . . 1 . . . . . Unreport Threat 1 | . . . . . 1 . . . . . . Locate Traps 4 | . 3 . . . 1 . . . . . . Recall Extermination 1 | . . . . . . 1 . . . . . Zone Layout 1 | . . . . . 1 . . . . . . Derelict Proto ID Bank 1 | . . . 1 . . . . . . . . Fabricator Hacks . | . . . . . . . . . . . . Repair Station Hacks . | . . . . . . . . . . . . Recycling Unit Hacks 2 | . 1 . . . . 1 . . . . . Retrieve Components 2 | . 1 . . . . 1 . . . . . Scanalyzer . | . . . . . . . . . . . . Garrison Access Hacks 3 | . . . . . 1 2 . . . . . Seal Access 3 | . . . . . 1 2 . . . . . Unauthorized Hacks 2 | . 2 . . . . . . . . . . Terminals 1 | . 1 . . . . . . . . . . Botnet 1 | . 1 . . . . . . . . . . Fabricators . | . . . . . . . . . . . . Repair Stations . | . . . . . . . . . . . . Recycling Units 1 | . 1 . . . . . . . . . . Reject 1 | . 1 . . . . . . . . . . Scanalyzers . | . . . . . . . . . . . . Garrison Access . | . . . . . . . . . . . . Data Cores Recovered . | . . . . . . . . . . . . Used . | . . . . . . . . . . . . Hacking Detections 24 | . 6 . . . 5 13 . . . . . Full Trace Events 3 | . 1 . . . . 2 . . . . . Feedback Events 1 | . . . . . . 1 . . . . . Hackware Fried 1 | . . . . . . 1 . . . . . Feedback Blocked . | . . . . . . . . . . . . Robot Schematics Acquired . | . . . . . . . . . . . . Robots Built . | . . . . . . . . . . . . Authchips . | . . . . . . . . . . . . Time . | . . . . . . . . . . . . Total Robot Build Rating . | . . . . . . . . . . . . Part Schematics Acquired 6 | . 2 . . . . . . . 4 . . Parts Built . | . . . . . . . . . . . . Authchips . | . . . . . . . . . . . . Time . | . . . . . . . . . . . . Total Part Build Rating . | . . . . . . . . . . . . Parts Repaired . | . . . . . . . . . . . . Time . | . . . . . . . . . . . . Parts Recycled . | . . . . . . . . . . . . Recycled Matter . | . . . . . . . . . . . . Retrieved Matter . | . . . . . . . . . . . . Retrieved Components 10 | . 7 . . . . 3 . . . . . Parts Scanalyzed . | . . . . . . . . . . . . Part Schematics Acquired . | . . . . . . . . . . . . Parts Damaged . | . . . . . . . . . . . . Bothacking | -11 -10 -10 -10 -9 -8 -7 -7 -7 -7 -6 -6 ------------ Run | Jun Mat Min Exi Min Mat Fac Low Low Dat Pro Fac Used RIF Installer . | . . . . . . . . . . . . Robots Hacked . | . . . . . . . . . . . . Non-combat . | . . . . . . . . . . . . Combat . | . . . . . . . . . . . . Robot Hacks Applied . | . . . . . . . . . . . . Relay Couplers Released . | . . . . . . . . . . . . Fabnet Peak Effective % . | . . . . . . . . . . . . Robots Rewired . | . . . . . . . . . . . . Allies Hacked . | . . . . . . . . . . . . Hacks Repelled . | . . . . . . . . . . . . Allies | -11 -10 -10 -10 -9 -8 -7 -7 -7 -7 -6 -6 -------- Run | Jun Mat Min Exi Min Mat Fac Low Low Dat Pro Fac Total Allies 3 | . . 1 . 2 . . . . . . . Largest Group 2 | . . 1 1 2 2 . . . . . . Highest-Rated Group 39 | . . 31 31 39 39 . . . . . . Highest-Rated Ally 31 | . . 31 31 31 31 . . . . . . Total Orders . | . . . . . . . . . . . . Ally Attacks 9 | . . . . . 9 . . . . . . Total Damage 85 | . . . . . 85 . . . . . . Kills 1 | . . . . . 1 . . . . . . Allies Corrupted . | . . . . . . . . . . . . Allies Melted . | . . . . . . . . . . . . Intel | -11 -10 -10 -10 -9 -8 -7 -7 -7 -7 -6 -6 ------- Run | Jun Mat Min Exi Min Mat Fac Low Low Dat Pro Fac Robot Analysis Total 136 | . 2 . . . . . . . 134 . . Derelict Logs Recovered 1 | . . . . . . . . 1 . . . Drone Launches . | . . . . . . . . . . . . Drone Recoveries . | . . . . . . . . . . . . Exploration | -11 -10 -10 -10 -9 -8 -7 -7 -7 -7 -6 -6 ------------- Run | Jun Mat Min Exi Min Mat Fac Low Low Dat Pro Fac Turns Passed 6724 | 41 944 297 365 365 3296 1158 89 73 48 37 11 Spaces Moved 5144 | 23 502 171 215 185 1310 1843 331 302 102 133 27 Core . | . . . . . . . . . . . . Treads 868 | . 81 171 115 . 216 285 . . . . . Legs 444 | 23 421 . . . . . . . . . . Wheels 1379 | . . . 100 185 1094 . . . . . . Hover . | . . . . . . . . . . . . Flight 2453 | . . . . . . 1558 331 302 102 133 27 Fastest Speed 24 | 120 120 160 160 175 160 24 24 24 24 24 24 Average Speed 99 | 120 150 160 166 175 176 45 24 24 24 24 24 Slowest Speed 240 | 120 190 160 175 175 240 160 24 24 24 24 24 Overloaded Moves . | . . . . . . . . . . . . Propulsion Burnouts . | . . . . . . . . . . . . Robots Hopped 5 | . . . . . . 4 . . 1 . . Cave-ins Triggered 1 | . . . . . 1 . . . . . . Exploration Rate (%) 53 | 3 93 42 60 62 97 43 61 59 77 40 2 Regions Visited 11 Branch Regions 7 Pre-discovered Areas 28 | . . 1 1 . . . . . 26 . . Known Exits Taken 2 | . 1 . . . . 1 . . . . . Unknown Exits Taken 9 | 1 . 1 1 1 1 . 1 1 1 1 . Scrap Searched 4 | . . 1 . 1 . . 1 1 . . . Spaces Dug 39 | . . . . . 19 17 . . 2 1 . Terrain Destroyed 338 | . 37 . . . 244 18 36 . 2 1 . Melee 24 | . . . . . 5 16 . . 2 1 . Projectile 3 | . . . . . 1 2 . . . . . AOE 311 | . 37 . . . 238 . 36 . . . . Terrain Rammed . | . . . . . . . . . . . . Walls Destroyed . | . . . . . . . . . . . . Machines Disabled . | . . . . . . . . . . . . Actions | -11 -10 -10 -10 -9 -8 -7 -7 -7 -7 -6 -6 --------- Run | Jun Mat Min Exi Min Mat Fac Low Low Dat Pro Fac Total 6145 | 28 600 184 221 223 1917 2057 335 301 113 134 32 Wait 342 | . 7 . . 33 241 56 . . 5 . . Move 5123 | 22 501 170 214 184 1309 1834 330 301 99 132 27 Hop 5 | . . . . . . 4 . . 1 . . Pick Up 94 | . 16 4 3 4 42 23 1 . 1 . . Fast Attach 31 | 1 3 . . . 19 8 . . . . . Attach 45 | . 3 1 . . 27 11 . . . . 3 Detach 3 | . . . . . 1 1 . . . . 1 Swap 38 | . 7 . 2 . 18 10 1 . . . . Drop 72 | 1 14 2 2 . 29 23 . . . . 1 Fire 332 | 4 49 7 . 2 223 44 3 . . . . Melee 41 | . . . . . 7 25 . . 7 2 . Ram 1 | . . . . . 1 . . . . . . Kick . | . . . . . . . . . . . . Crush . | . . . . . . . . . . . . Escape Stasis 18 | . . . . . . 18 . . . . . Rewire . | . . . . . . . . . . . . Trap . | . . . . . . . . . . . . Miscellaneous . | . . . . . . . . . . . . Route ------- -11/Junkyard -10/Materials (discovered 4 exits: [*Mat x3] / *Min) -10/Mines -10/Exiles -9/Mines (discovered 2 exits: *Mat x2) -8/Materials (discovered 3 exits: *Fac x3) -7/Factory (discovered 6 exits: *Fac x2 / *Sto x2 / *Low x2) -7/Lower Caves -7/Lower Caves -7/Data Miner -6/Proximity Caves -6/Factory History --------- Turn | Location | Event 10 | -11/Junkyard | Discovered new exit (range 3) 42 | -11/Junkyard | Entered Materials 207 | -10/Materials | Discovered new exit (range 15) 316 | -10/Materials | Build established: Mutant 439 | -10/Materials | Discovered new exit (range 11) 481 | -10/Materials | Identified exit to Mines 655 | -10/Materials | Discovered new exit (range 16) 800 | -10/Materials | Core integrity fell below 50% 986 | -10/Materials | Entered Mines 1001 | -10/Mines | Escorted by a lone wolf Derelict 1021 | -10/Mines | Learned location of Storage (-7) 1070 | -10/Mines | Received a Rocket Launcher from a helpful Derelict 1277 | -10/Mines | Deemed a non-threat by the Exiles lab entrance 1277 | -10/Mines | Discovered new exit (range 5) 1283 | -10/Mines | Entered Exiles 1283 | -10/Exiles | Accompanied by 1 ally 1323 | -10/Exiles | Met 8R-AWN 1351 | -10/Exiles | Met EX-HEX 1397 | -10/Exiles | Met EX-BIN 1416 | -10/Exiles | Aligned with FarCom system 1418 | -10/Exiles | Given EX-Vault access code 1455 | -10/Exiles | Opened EX-Vault 1476 | -10/Exiles | Found Lightpack 2.0 1516 | -10/Exiles | Warned to stay clear of 0b10 Research branches 1565 | -10/Exiles | Met EX-DEC 1578 | -10/Exiles | Learned location of Zion (-6) 1630 | -10/Exiles | Discovered new exit (range 12) 1648 | -10/Exiles | Left Exiles lab with Lightpack 2.0 1648 | -10/Exiles | Entered Mines 1661 | -9/Mines | A weapon hastily lodged in a ceiling crevice suddenly fell to the ground 1926 | -9/Mines | Discovered new exit (range 10) 1965 | -9/Mines | Discovered new exit (range 8) 2013 | -9/Mines | Entered Materials 2013 | -8/Materials | Accompanied by 2 allies 2013 | -8/Materials | Evolved 4 slots: Propulsion x2, Utility x2 2018 | -8/Materials | Led the pair of lost Derelicts to an unsafe place 2313 | -8/Materials | Build established: Scavenger-Mutant 2787 | -8/Materials | Lost 3 parts (2n1u) 3075 | -8/Materials | Discovered new exit (range 8) 3642 | -8/Materials | Crushed by falling debris 3673 | -8/Materials | Lost 3 parts (1n1u1w) 3940 | -8/Materials | Build established: Mutant 4013 | -8/Materials | First assault squad dispatched 4249 | -8/Materials | Discovered new exit (range 8) 4561 | -8/Materials | Core integrity fell below 50% 4658 | -8/Materials | Lost 8 parts (2p2n2u2w) 4743 | -8/Materials | Discovered new exit (range 16) 4898 | -8/Materials | Build established: Scavenger-Mutant 5123 | -8/Materials | System corruption reached 10% 5309 | -8/Materials | Entered Factory 5309 | -7/Factory | Evolved 2 slots: Propulsion x1, Utility x1 5358 | -7/Factory | Identified exit to Storage 5358 | -7/Factory | Identified exit to Lower Caves 5464 | -7/Factory | Lost 3 parts (1n1u1w) 5561 | -7/Factory | System Shield fried by hacking feedback 6174 | -7/Factory | Discovered new exit (range 10) 6276 | -7/Factory | Build established: Hauler-Sprinter 6381 | -7/Factory | Discovered new exit (range 5) 6467 | -7/Factory | Entered Lower Caves 6543 | -7/Lower Caves | Discovered new exit (range 6) 6556 | -7/Lower Caves | Entered another Lower Caves area 6567 | -7/Lower Caves | Encountered a Warlord checkpoint 6588 | -7/Lower Caves | Learned Factory stockpile data 6601 | -7/Lower Caves | Attracted the attention of an 0b10 checkpoint 6624 | -7/Lower Caves | Discovered new exit (range 12) 6629 | -7/Lower Caves | Entered Data Miner 6629 | -7/Data Miner | Discovered new exit (range 6) 6634 | -7/Data Miner | Met Data Miner 6641 | -7/Data Miner | Learned location of Section 7 (-2) 6641 | -7/Data Miner | Acquired the access code to Warlord's prototype stash 6643 | -7/Data Miner | Received God Mode back door access code from Data Miner 6647 | -7/Data Miner | Destroyed Data Miner 6649 | -7/Data Miner | Interfaced with the Data Conduit 6650 | -7/Data Miner | Found Prototype Hackware 6677 | -7/Data Miner | Entered Proximity Caves 6708 | -6/Proximity Caves | Discovered new exit (range 13) 6711 | -6/Proximity Caves | Spotter reported a threat 6714 | -6/Proximity Caves | Entered Factory 6714 | -6/Factory | Evolved 2 slots: Utility x2 6716 | -6/Factory | Loaded intel: 266 machine locations 6722 | -6/Factory | Identified Quantum Router 6725 | -6/Factory | Self-destructed Last Messages --------------- Downloaded encryption format records. Connection remotely terminated. 06650_ Acquired Prototype Hackware. LOCATION=UNKNOWN GOAL=ESCAPE 06689_ Slug penetrates Wall. 06708_ EXIT=FOUND 06709_ N-01 Spotter is scanning... 06711_ N-01 Spotter sends a signal. 06711_ ALERT: Unidentified potential threat approaching Complex 0b10. PARAMETERS=UTILITY+2 LOCATION=UNKNOWN GOAL=ESCAPE 06714_ Receiving FarCom transmissions... Loading Factory stockpile data (x9)... Loading Factory machine intel (x266)... 06721_ Dropped System Restoration Module. 06722_ Identified Quantum Router. 06725_ Connecting with DSF Access... 06725_ Current location identified: Factory Map ----- +----------------------------------------------------+ | ??????????##""" # ?"""?"""?"""?"T"???????????? | | ??????????## # """ """?"""???????????????? | | ??????????## # """ """?"""???????????????? | | ??????????#####+##### ??????????????????? | | ??????????## ??????????????????? | | ??????????## ##?????????????????????? | | ??????????## ##?????????????????????? | | ??????????## ##?????????????????????? | | ??????????## ##?????????????????????? | | ??????????#####+######+#####?????????????????????? | | ??????????## # ? ???????????????????? | | ??????????## # """????????????????? | | ??????????##"" # """ R"????????????????? | | ??????????##"" # """ * """????????????????? | | ??????????##""" # """ ?????h???????"""??? | | ??????????##""" # ??#???????????G"??? | | ??????????##""" # """ """ #?????h????"""??? | | ??????????## !# """ """ #???????????????? | | ??????????## + """ """ #???????????????? | | ??????????####+###### #?????????""""??? | | ??????????#### ###### #?????????""""??? | | ????????????????????# #?????????""""??? | | ????????????????????###+##########?????????""""??? | | ??????????????????????# #?###????????????????????? | | ???"""""""""?# ########k##T ####### ?????????? | | ?????????????# @ ????????? | | ???"""""""""?# ????????? | | ?????????????+ k ????????? | | ???"""""""""?# ?????????? | | ?????????????# ?????????? | | ??????????"""## #############u#######??????????? | | ????]??????Y"?# ?????????????? ???????????????? | | ??????????"""?# ?????????"""?""" ?????????????? | | ??????????????# ??????????"""?"""? ????????????? | | ??????????????#???????????"""?"""?? #???????????? | | ???????????????????????????????????? ????????????? | | ?????""""?????????????????"""?"""????????????????? | | ?????""""?????????????????"""?"""????????????????? | | ?????""""?????????????????"""?"""????????????????? | | ?????""""????????????????????????????????????????? | | ?????""""????????????????????????????????????????? | | ?????""""????????????????????????????????????????? | | ?????????????????????????????????????????????????? | | ?????????????????????????????????????????????????? | | ?????????????????????????????????????????????????? | | ?????????????????????????????"""?"""?????????????? | | ?????????????????????????????"""?"""?????????????? | | ?????????????????????????????"""?"""?????????????? | | ?????????????????????????????????????????????????? | | ??????????"""""""????????????????????????????????? | +----------------------------------------------------+ Best States ------------- Heat Dissipation 37 Energy Generation 18 Energy Capacity 250 Matter Stores 300 Matter Capacity 300 Sight Range 16 Terrain Scan Density 10 Armor Coverage 300 Evasion (%) 65 Recoil Reduction 5 Offensive Hacking 20 Defensive Hacking 10 Item Schematics ----------------- Hcp. Storage Unit | -10/Materials | Hacked Lrg. Storage Unit | -10/Materials | Hacked Combat Drone Bay | -7/Data Miner | Free Lgt. Regenerative Plating | -7/Data Miner | Free Cld. Aerolev Unit | -7/Data Miner | Free Imp. Kinecellerator | -7/Data Miner | Free Robot Schematics ------------------ None Fabricated ------------ Nothing Alien Tech Used ----------------- None Achievements -------------- None Challenges ------------ None Game ------ Seed BiomechanicalLaserDissipator Manual? 0 Play Time 02:08:17 Cumulative 230.9 hours Start 2023.12.19 @ 08:41:31 End 2023.12.19 @ 11:29:16 Sessions 1 Manual Loads 0 Difficulty Rogue Special Mode None Game No. 130 Rogue 130 Adventurer 0 Explorer 0 Win Type - Total 5 Types 3/0/2/0/0/0/0/0/0 Lore% 56 Gallery% 59 Achievement% 53 Wizard Run 0 Options --------- ASCII 0 Keyboard 0 Movement Mouse Keybinds 0 Fullscreen 2 Font 18/SmallcapsGlow Map View 76x50 Tactical HUD 1 Map Filters NONE Filters NONE Steam 1 RUN: b492c116-1dfc-4e9c-9996-033b4c81169e